bitfinex/quotes_SOLUSD_20240620
["timestamp","ask_amount","ask_price","bid_price","bid_amount"]
[1718871227937,12.25749035,137.25,137.18,45.0]
[1718871228137,0.17,137.24,137.19,7.2891]
[1718871228337,0.68,137.24,137.2,45.0]
[1718871229960,0.68,137.24,137.19,45.0]
[1718871235767,0.68,137.24,137.14,7.2916]
[1718871236349,0.68,137.24,137.15,7.2912]
[1718871236857,0.68,137.24,137.14,7.2916]
[1718871237058,0.68,137.24,137.15,52.2911]
[1718871237561,0.68,137.24,137.15,45.0]
[1718871238446,0.68,137.24,137.15,52.2912]
[1718871238769,33.78749035,137.25,137.15,45.0]
[1718871238964,12.25749035,137.25,137.2,7.2885]
[1718871239168,12.25749035,137.25,137.15,45.0]
[1718871239472,12.25749035,137.25,137.19,7.2889]
[1718871239656,12.25749035,137.25,137.2,45.0]
[1718871239857,12.25749035,137.25,137.18,7.2893]
[1718871240662,12.25749035,137.25,137.19,52.289]
[1718871241154,12.25749035,137.25,137.12,21.53]
[1718871241367,12.25749035,137.25,137.17,7.2898]
[1718871241550,12.25749035,137.25,137.18,45.0]
[1718871241755,0.17,137.24,137.18,52.2893]
[1718871241957,0.68,137.24,137.13,20.0]
[1718871242156,0.68,137.24,137.14,45.0]
[1718871242355,0.68,137.24,137.18,7.2896]
[1718871242768,0.68,137.24,137.17,7.2899]
[1718871242975,0.68,137.24,137.18,52.2896]
[1718871243271,0.68,137.24,137.17,7.2901]
[1718871243475,0.68,137.24,137.18,52.2896]
[1718871243661,0.68,137.24,137.14,45.0]
[1718871244352,0.68,137.24,137.18,7.2893]
[1718871245281,0.68,137.24,137.17,7.2901]
[1718871247595,0.34,137.24,137.18,7.2895]
[1718871247756,0.34,137.24,137.17,7.29]
[1718871248081,0.34,137.24,137.13,20.0]
[1718871248265,0.34,137.24,137.17,7.2902]
[1718871248577,0.34,137.24,137.14,45.0]
[1718871248578,0.34,137.24,137.18,52.2896]
[1718871248772,0.34,137.24,137.18,7.2896]
[1718871249076,0.34,137.24,137.17,7.29]
[1718871249659,0.34,137.23,137.17,7.29]
[1718871249865,0.34,137.22,137.17,7.29]
[1718871250074,0.17,137.2,137.17,7.29]
[1718871250488,0.34,137.2,137.15,7.291]
[1718871250657,0.34,137.19,137.16,52.2904]
[1718871250980,0.34,137.18,137.16,7.2904]
[1718871252087,0.17,137.17,137.11,38.1934]
[1718871252258,0.17,137.16,137.11,16.6634]
[1718871252457,0.51,137.16,137.13,7.2922]
[1718871252652,0.17,137.15,137.14,7.2918]
[1718871252858,0.34,137.15,137.14,7.2918]
[1718871253088,0.51,137.15,137.14,7.2918]
[1718871253390,0.51,137.15,137.12,7.2926]
[1718871253581,0.17,137.14,137.12,7.2926]
[1718871253787,0.51,137.14,137.12,7.2926]
[1718871255467,0.51,137.14,137.13,7.2923]
[1718871255662,0.68,137.14,137.13,7.2923]
[1718871256165,0.68,137.14,137.12,7.2927]
[1718871256397,0.68,137.14,137.07,32.0936]
[1718871256567,0.68,137.14,137.12,7.2927]
[1718871256991,0.68,137.14,137.11,7.2933]
[1718871257191,0.68,137.14,137.12,45.0]
[1718871257570,0.68,137.14,137.12,52.2927]
[1718871258400,0.68,137.14,137.13,7.2923]
[1718871259271,0.68,137.14,137.12,45.0]
[1718871259490,12.40411206,137.18,137.12,52.16]
[1718871259794,0.17,137.15,137.12,45.0]
[1718871259999,0.17,137.15,137.13,14.452]
[1718871260164,19.56411206,137.18,137.12,45.0]
[1718871260165,5.75691206,137.18,137.12,45.0]
[1718871260364,35.1381,137.2,137.07,15.4302]
[1718871260589,6.4981,137.2,137.1,7.16]
[1718871260901,7.16,137.16,137.1,7.2937]
[1718871261197,7.16,137.16,137.11,7.2932]
[1718871261360,0.17,137.15,137.1,14.4537]
[1718871261570,0.68,137.15,137.1,7.2939]
[1718871261766,7.84,137.15,137.09,7.2943]
[1718871262079,7.16,137.14,137.09,14.4543]
[1718871262395,0.68,137.13,137.09,14.4543]
[1718871262780,0.68,137.13,137.08,7.2948]
[1718871262969,0.68,137.13,137.09,7.16]
[1718871263304,12.3130114,137.2,137.09,7.16]
[1718871263491,6.4981,137.2,137.07,15.4302]
[1718871263694,6.4981,137.2,137.16,14.4505]
[1718871264013,25.2188222,137.24,137.19,7.16]
[1718871264174,25.2188222,137.24,137.19,14.449]
[1718871264175,12.07136672,137.24,137.19,14.449]
[1718871264365,12.07136672,137.24,137.19,7.16]
[1718871264567,12.07136672,137.24,137.19,14.4487]
[1718871264989,12.07136672,137.24,137.2,7.2884]
[1718871265191,13.7324,137.27,137.22,7.2875]
[1718871265405,255.9,137.28,137.22,7.2875]
[1718871265698,261.76915939,137.28,137.23,7.287]
[1718871265866,261.76915939,137.28,137.22,7.2873]
[1718871266066,261.76915939,137.28,137.2,7.2885]
[1718871266295,21.03025525,137.27,137.13,38.0604]
[1718871266601,261.76915939,137.28,137.14,65.0]
[1718871266777,21.70882525,137.27,137.2,7.2885]
[1718871266971,21.70882525,137.27,137.19,7.2889]
[1718871267171,0.68,137.27,137.18,7.2895]
[1718871267375,0.68,137.27,137.19,45.0]
[1718871268678,0.68,137.27,137.19,52.2891]
[1718871268890,0.68,137.27,137.19,45.0]
[1718871269081,0.68,137.27,137.19,52.2891]
[1718871269984,0.68,137.27,137.19,45.0]
[1718871270193,0.68,137.27,137.22,7.2875]
[1718871270397,5.86915939,137.28,137.23,7.287]
[1718871270701,41.45496877,137.31,137.22,7.2873]
[1718871271612,0.34,137.3,137.22,7.2873]
[1718871271811,0.17,137.29,137.22,7.2873]
[1718871272490,0.17,137.29,137.19,45.0]
[1718871272808,0.17,137.28,137.19,45.0]
[1718871272970,0.51,137.28,137.19,45.0]
[1718871273176,0.17,137.27,137.19,45.0]
[1718871273486,0.17,137.27,137.23,7.2867]
[1718871274501,47.2341053,137.31,137.2,16.3134]
[1718871274677,27.03801073,137.31,137.21,45.0]
[1718871274987,6.0038,137.31,137.26,7.2851]
[1718871276510,6.0038,137.31,137.21,45.0]
[1718871277206,0.68,137.3,137.21,45.0]
[1718871282008,5.77023709,137.33,137.21,45.0]
[1718871282192,6.0109,137.35,137.22,20.0]
[1718871282393,6.0109,137.35,137.23,45.0]
[1718871282905,11.73416917,137.35,137.23,45.0]
[1718871283509,0.68,137.34,137.23,45.0]
[1718871285221,0.68,137.34,137.22,20.0]
[1718871285403,0.68,137.34,137.21,20.0]
[1718871286203,0.68,137.34,137.22,2.07910201]
[1718871286440,11.73416917,137.35,137.21,20.0]
[1718871286622,11.73416917,137.35,137.22,45.0]
[1718871286798,11.73416917,137.35,137.23,20.0]
[1718871287000,11.73416917,137.35,137.24,45.0]
[1718871287925,0.17,137.33,137.24,45.0]
[1718871290844,11.73416917,137.35,137.24,45.0]
[1718871291001,11.73416917,137.35,137.25,1.45066843]
[1718871292137,0.51,137.34,137.25,1.45066843]
[1718871292305,0.17,137.33,137.25,1.45066843]
[1718871292930,11.73416917,137.35,137.25,1.45066843]
[1718871293129,6.0109,137.35,137.26,15.752]
[1718871293426,6.0109,137.35,137.27,65.0]
[1718871294422,0.34,137.34,137.28,1.29474092]
[1718871294612,0.34,137.33,137.28,1.29474092]
[1718871294811,0.34,137.33,137.3,7.2831]
[1718871295019,0.34,137.32,137.28,7.2841]
[1718871295222,0.34,137.32,137.29,45.0]
[1718871295610,0.34,137.32,137.28,7.2841]
[1718871295936,0.17,137.3,137.27,7.2846]
[1718871296231,0.34,137.3,137.28,45.0]
[1718871297033,0.34,137.3,137.29,7.2838]
[1718871297330,0.68,137.3,137.29,7.2838]
[1718871297823,0.68,137.3,137.28,52.2841]
[1718871298136,0.68,137.3,137.28,52.2842]
[1718871298827,0.68,137.3,137.22,27.514369]
[1718871299048,0.17,137.28,137.26,7.2852]
[1718871299207,0.34,137.28,137.26,7.2852]
[1718871300206,6.0109,137.35,137.22,27.514369]
[1718871300419,0.34,137.34,137.28,7.284]
[1718871300712,0.17,137.33,137.28,7.284]
[1718871301119,0.17,137.33,137.23,20.0]
[1718871301318,0.17,137.33,137.26,7.285]
[1718871302031,0.17,137.33,137.24,45.0]
[1718871302729,0.17,137.33,137.28,7.2843]
[1718871303111,0.17,137.33,137.29,7.2837]
[1718871303513,6.0109,137.35,137.3,7.2831]
[1718871303712,6.0109,137.35,137.24,45.0]
[1718871304137,6.0109,137.35,137.32,7.2818]
[1718871304909,6.0109,137.35,137.24,45.0]
[1718871305146,5.78412188,137.38,137.27,15.2092]
[1718871305147,6.169,137.38,137.27,15.2092]
[1718871305316,6.169,137.38,137.35,7.2803]
[1718871305634,6.169,137.38,137.34,7.2809]
[1718871305821,6.169,137.38,137.28,65.0]
[1718871306213,6.169,137.38,137.23,16.6206]
[1718871306439,6.4699,137.36,137.26,7.2851]
[1718871306614,6.4699,137.36,137.25,7.2858]
[1718871306815,6.4699,137.36,137.24,7.2864]
[1718871307129,0.17,137.31,137.1,9.979991]
[1718871307330,256.07,137.31,137.24,7.2864]
[1718871307513,20.68,137.31,137.23,7.2869]
[1718871307711,20.68,137.31,137.24,7.2863]
[1718871308628,20.68,137.31,137.17,16.6206]
[1718871308830,20.68,137.31,137.22,7.2871]
[1718871309030,20.68,137.31,137.23,7.2869]
[1718871310335,20.68,137.31,137.22,7.2873]
[1718871311524,0.17,137.29,137.19,7.2886]
[1718871311721,20.17,137.29,137.2,7.2883]
[1718871312028,0.17,137.27,137.16,16.6206]
[1718871312233,0.34,137.27,137.16,16.6206]
[1718871312433,0.17,137.25,137.21,7.2877]
[1718871312734,0.34,137.25,137.21,7.2877]
[1718871312937,21.02628368,137.34,137.16,16.6206]
[1718871313139,34.16633208,137.34,137.17,65.0]
[1718871313342,20.0,137.29,137.16,16.6206]
[1718871313524,6.428,137.27,137.19,7.2891]
[1718871313725,6.428,137.27,137.12,15.6201]
[1718871313920,6.428,137.25,137.09,20.51]
[1718871314232,0.17,137.21,137.13,7.2922]
[1718871314431,0.17,137.21,137.12,7.2928]
[1718871314432,20.68,137.21,137.12,7.2928]
[1718871314738,20.68,137.21,137.13,7.2922]
[1718871315239,20.68,137.21,137.12,7.2927]
[1718871315738,20.68,137.21,137.11,7.2932]
[1718871315941,20.68,137.21,137.08,15.6201]
[1718871316120,20.68,137.21,137.14,7.2915]
[1718871316458,0.68,137.21,137.15,7.2912]
[1718871316638,0.68,137.21,137.08,15.6201]
[1718871316839,0.68,137.21,137.13,7.2923]
[1718871317032,20.68,137.21,137.12,7.2924]
[1718871317344,20.68,137.21,137.13,7.2922]
[1718871317647,0.68,137.21,137.15,7.2908]
[1718871317827,0.68,137.21,137.08,15.6201]
[1718871318035,0.68,137.21,137.09,65.0]
[1718871318958,0.68,137.21,137.16,7.2904]
[1718871319522,0.68,137.21,137.17,7.2902]
[1718871319722,0.68,137.21,137.16,7.2905]
[1718871319935,0.68,137.21,137.13,7.2923]
[1718871320520,0.68,137.21,137.09,20.0]
[1718871320748,0.68,137.21,137.16,7.2904]
[1718871321041,0.68,137.21,137.09,20.0]
[1718871321248,0.68,137.21,137.16,7.2904]
[1718871321454,0.17,137.21,137.16,7.2904]
[1718871322525,0.34,137.21,137.16,7.2904]
[1718871322727,6.428,137.22,137.17,52.2901]
[1718871322931,6.428,137.22,137.18,7.2894]
[1718871323242,6.428,137.22,137.19,45.0]
[1718871323439,6.4462,137.27,137.19,45.0]
[1718871323826,6.4462,137.27,137.19,52.2888]
[1718871324357,6.4462,137.27,137.2,7.2885]
[1718871324849,12.24980081,137.27,137.19,45.0]
[1718871325027,12.24980081,137.27,137.14,15.9108]
[1718871325223,12.24980081,137.27,137.17,7.29]
[1718871325425,0.34,137.26,137.18,45.0]
[1718871325625,0.17,137.24,137.18,52.2896]
[1718871325827,0.34,137.24,137.18,52.2896]
[1718871326043,0.17,137.22,137.18,52.2896]
[1718871326351,0.34,137.22,137.18,52.2896]
[1718871326537,0.34,137.21,137.18,52.2896]
[1718871326735,12.24980081,137.27,137.18,45.0]
[1718871327045,12.24980081,137.27,137.2,7.2884]
[1718871327249,12.24980081,137.27,137.18,45.0]
[1718871327437,12.24980081,137.27,137.2,7.2885]
[1718871327962,0.17,137.25,137.19,7.289]
[1718871328260,0.17,137.25,137.2,45.0]
[1718871328630,0.17,137.25,137.17,7.2898]
[1718871329133,0.17,137.25,137.17,7.29]
[1718871329953,0.17,137.25,137.18,7.2896]
[1718871330150,0.17,137.25,137.13,6.3636]
[1718871330353,0.17,137.25,137.14,65.0]
[1718871330560,0.17,137.25,137.19,7.2889]
[1718871330751,0.17,137.25,137.2,7.2885]
[1718871330934,0.17,137.25,137.19,7.2889]
[1718871333940,0.17,137.25,137.14,65.0]
[1718871334156,0.17,137.25,137.17,7.2898]
[1718871334659,0.17,137.25,137.16,7.2905]
[1718871334859,0.17,137.23,137.15,7.2911]
[1718871335040,0.68,137.23,137.14,7.2916]
[1718871335237,0.68,137.23,137.15,7.2909]
[1718871335438,0.68,137.23,137.16,7.2907]
[1718871335651,0.68,137.23,137.18,7.2896]
[1718871335869,6.2886,137.24,137.18,7.2896]
[1718871336463,6.2886,137.24,137.19,7.2888]
[1718871337066,6.2886,137.24,137.18,7.2894]
[1718871337263,0.17,137.23,137.18,7.2894]
[1718871337565,6.2886,137.24,137.11,21.8095]
[1718871337770,6.2886,137.24,137.13,0.17]
[1718871338060,6.2886,137.24,137.12,20.0]
[1718871338764,6.2886,137.24,137.18,7.2895]
[1718871339147,0.68,137.23,137.17,7.29]
[1718871340567,0.68,137.23,137.16,7.2905]
[1718871340863,0.68,137.23,137.17,45.0]
[1718871341445,0.68,137.23,137.16,7.2905]
[1718871341744,0.68,137.23,137.17,7.2902]
[1718871342146,0.68,137.23,137.18,7.2895]
[1718871342350,0.68,137.23,137.19,7.289]
[1718871342746,0.68,137.23,137.18,7.2894]
[1718871342952,0.68,137.23,137.18,7.2893]
[1718871343666,0.68,137.23,137.12,20.0]
[1718871343847,0.68,137.23,137.2,7.2885]
[1718871344453,0.68,137.23,137.13,45.0]
[1718871345063,0.68,137.23,137.18,7.2891]
[1718871345647,0.68,137.23,137.19,7.2891]
[1718871346359,0.68,137.23,137.18,7.2895]
[1718871347469,0.68,137.23,137.12,20.0]
[1718871347651,0.68,137.23,137.16,7.2905]
[1718871347981,0.68,137.23,137.17,7.29]
[1718871349048,0.68,137.23,137.18,7.2896]
[1718871349753,6.2886,137.24,137.12,20.0]
[1718871350064,6.2886,137.24,137.22,7.2872]
[1718871350275,6.2886,137.24,137.2,7.2881]
[1718871350474,6.2886,137.24,137.13,73.6355]
[1718871350651,6.2886,137.24,137.14,20.0]
[1718871350852,6.2886,137.24,137.15,45.0]
[1718871351081,12.26830081,137.27,137.23,7.2866]
[1718871351369,12.26830081,137.27,137.22,7.2873]
[1718871351370,0.34,137.26,137.22,7.2873]
[1718871351581,0.34,137.26,137.2,7.2883]
[1718871352262,0.17,137.25,137.2,7.2883]
[1718871352446,0.34,137.25,137.17,7.2899]
[1718871352651,0.17,137.23,137.18,7.2895]
[1718871352874,0.34,137.23,137.18,7.2895]
[1718871353175,0.17,137.21,137.18,7.2895]
[1718871353367,0.34,137.21,137.18,7.2895]
[1718871353561,0.34,137.2,137.18,7.2895]
[1718871353993,0.34,137.2,137.15,45.0]
[1718871354166,0.34,137.2,137.17,7.2901]
[1718871354577,0.34,137.2,137.18,7.2894]
[1718871359779,0.17,137.21,137.19,45.0]
[1718871359959,255.9,137.26,137.14,47.92148]
[1718871360155,255.9,137.26,137.15,20.0]
[1718871360477,255.9,137.26,137.16,46.82082102]
[1718871360655,255.9,137.26,137.23,7.2869]
[1718871360863,6.4647,137.27,137.23,7.2869]
[1718871361475,6.4647,137.27,137.22,7.2875]
[1718871361955,6.4647,137.27,137.23,7.2869]
[1718871362356,6.4647,137.27,137.22,7.2873]
[1718871362966,6.4647,137.27,137.23,7.287]
[1718871363163,6.4647,137.27,137.24,7.2863]
[1718871363370,6.4647,137.27,137.23,7.2868]
[1718871363567,11.87092098,137.3,137.24,7.2864]
[1718871363777,11.87092098,137.3,137.23,7.2868]
[1718871363967,11.87092098,137.3,137.24,45.0]
[1718871364485,0.34,137.29,137.24,45.0]
[1718871364685,0.68,137.29,137.23,7.2869]
[1718871364868,0.68,137.29,137.18,15.9014]
[1718871365067,0.68,137.29,137.24,7.2861]
[1718871365277,0.17,137.29,137.25,7.2858]
[1718871365479,6.0886,137.3,137.26,7.2854]
[1718871365788,39.86402489,137.33,137.28,7.284]
[1718871366086,19.41946002,137.34,137.28,7.2839]
[1718871366295,6.2801,137.34,137.28,7.2839]
[1718871366478,6.2801,137.34,137.25,7.2858]
[1718871366678,6.2801,137.34,137.2,22.7866]
[1718871366875,6.2801,137.34,137.23,7.2866]
[1718871367069,12.17361038,137.34,137.22,7.2874]
[1718871367372,45.68,137.33,137.22,7.2874]
[1718871367584,58.81936002,137.33,137.22,7.2874]
[1718871367771,45.68,137.33,137.23,7.2869]
[1718871367973,0.17,137.31,137.22,7.2873]
[1718871368173,0.17,137.29,137.2,7.2886]
[1718871368488,0.17,137.29,137.19,7.289]
[1718871368489,0.17,137.27,137.19,7.289]
[1718871368785,0.17,137.27,137.16,15.3933]
[1718871368786,45.17,137.27,137.18,7.2895]
[1718871369019,0.17,137.25,137.18,7.2895]
[1718871369896,0.17,137.23,137.19,7.2889]
[1718871370198,0.68,137.23,137.19,7.2889]
[1718871370694,0.17,137.21,137.16,15.3933]
[1718871370863,0.68,137.21,137.18,7.2895]
[1718871371580,30.0,137.2,137.18,7.2895]
[1718871371779,0.17,137.19,137.18,7.2895]
[1718871372489,30.17,137.19,137.18,45.0]
[1718871372689,0.17,137.18,137.15,7.2912]
[1718871372894,0.51,137.18,137.14,7.2916]
[1718871373094,0.17,137.17,137.14,7.2916]
[1718871373300,0.51,137.17,137.14,7.2916]
[1718871373601,30.0,137.17,137.12,15.4236]
[1718871373799,30.0,137.17,137.16,7.2907]
[1718871374782,30.0,137.17,137.16,52.2907]
[1718871375292,21.02530043,137.32,137.16,52.2907]
[1718871375293,6.5719,137.26,137.16,45.0]
[1718871375497,6.5719,137.26,137.17,45.0]
[1718871375885,6.5719,137.26,137.16,45.0]
[1718871377079,0.68,137.25,137.16,45.0]
[1718871378094,6.5719,137.26,137.16,45.0]
[1718871379300,0.17,137.25,137.16,45.0]
[1718871379606,0.68,137.25,137.16,45.0]
[1718871390112,6.5719,137.26,137.16,45.0]
[1718871390319,6.6235,137.31,137.17,35.2994]
[1718871390482,6.6235,137.31,137.18,45.0]
[1718871390795,6.6235,137.31,137.2,6.0651]
[1718871390990,6.6235,137.31,137.21,65.0]
[1718871392008,6.6235,137.31,137.21,45.0]
[1718871392799,0.68,137.3,137.21,45.0]
[1718871393121,37.12819379,137.28,137.14,9.717408]
[1718871393326,37.12819379,137.28,137.09,5.8703913]
[1718871393327,30.0,137.17,137.03,14.13039725]
[1718871393606,44.53,137.16,136.97,96.73863032]
[1718871393813,109.53,137.16,136.89,14.130397]
[1718871394021,43.85,137.14,136.89,14.130397]
[1718871394187,43.85,137.12,136.89,9.979991]
[1718871394394,64.36,137.11,136.86,7.319]
[1718871394590,89.19,137.1,136.86,7.319]
[1718871394803,10.92370357,136.98,136.86,7.319]
[1718871395014,13.16445017,136.97,136.86,7.319]
[1718871395183,10.92370357,137.0,136.86,7.319]
[1718871395386,0.51,136.99,136.86,7.319]
[1718871395907,0.17,136.98,136.86,7.319]
[1718871397019,0.17,136.98,136.88,7.319]
[1718871397318,13.16562941,136.98,136.9,7.319]
[1718871397615,13.16562941,136.98,136.92,7.319]
[1718871397790,13.16562941,136.98,136.89,20.0]
[1718871398220,13.16562941,136.97,136.86,20.17]
[1718871398522,13.16562941,136.96,136.88,0.17]
[1718871398814,13.16562941,136.98,136.88,0.17]
[1718871399051,13.67562941,136.97,136.88,0.17]
[1718871399226,13.16562941,136.96,136.88,0.17]
[1718871400116,13.16562941,136.95,136.88,0.17]
[1718871400419,13.16562941,136.96,136.88,0.17]
[1718871400717,13.16562941,136.95,136.88,20.17]
[1718871400919,0.17,137.02,136.9,0.17]
[1718871401125,13.16562941,137.01,136.9,20.17]
[1718871401413,13.50562941,137.0,136.91,45.0]
[1718871401618,13.67562941,136.99,136.92,20.0]
[1718871401807,13.16562941,136.98,136.93,45.0]
[1718871402015,13.16562941,136.97,136.93,45.0]
[1718871402206,13.16562941,136.96,136.93,45.0]
[1718871402398,13.16562941,136.95,136.93,45.0]
[1718871402601,13.16562941,136.94,136.93,45.0]
[1718871402794,13.16562941,136.98,136.93,45.0]
[1718871403010,13.16562941,136.97,136.93,45.0]
[1718871403402,13.16562941,136.96,136.93,45.0]
[1718871403604,13.16562941,136.95,136.87,9.979991]
[1718871403798,13.16562941,136.94,136.88,20.0]
[1718871404004,13.16562941,136.93,136.88,20.0]
[1718871404213,13.16562941,136.96,136.88,20.0]
[1718871404405,13.16562941,136.95,136.88,20.0]
[1718871404609,13.16562941,136.94,136.88,20.0]
[1718871404808,13.16562941,136.93,136.89,45.0]
[1718871405002,13.16562941,136.96,136.9,20.0]
[1718871405324,13.16562941,136.95,136.91,45.0]
[1718871405623,13.16562941,136.94,136.91,45.0]
[1718871405817,13.16562941,136.93,136.91,45.0]
[1718871406019,0.34,136.99,136.91,45.0]
[1718871406311,13.33696551,136.98,136.91,45.0]
[1718871406540,13.16696551,136.97,136.91,45.0]
[1718871406696,13.16698422,136.96,136.91,45.0]
[1718871406896,4.89198422,136.96,136.93,0.17]
[1718871407097,38.90744718,137.03,136.93,45.34]
[1718871407302,38.90744718,137.03,136.94,20.0]
[1718871407508,38.90744718,137.03,136.95,45.0]
[1718871407713,38.90744718,137.03,136.96,20.0]
[1718871407915,38.90744718,137.03,136.97,45.0]
[1718871411409,0.17,137.08,136.98,20.0]
[1718871411609,0.68,137.08,136.99,45.0]
[1718871412223,0.51,137.08,136.99,45.0]
[1718871413230,255.9,137.09,136.99,45.0]
[1718871413410,37.26248684,137.12,137.0,20.0]
[1718871413732,37.26248684,137.12,137.01,45.0]
[1718871414058,37.26248684,137.12,137.02,20.0]
[1718871414227,37.26248684,137.12,137.03,45.0]
[1718871416426,37.26248684,137.12,137.04,20.0]
[1718871416625,37.26248684,137.12,137.05,45.0]
[1718871417434,0.34,137.11,137.05,45.0]
[1718871418738,0.34,137.1,137.05,45.0]
[1718871418912,0.17,137.09,137.05,45.0]
[1718871421844,0.34,137.09,136.96,29.238119]
[1718871422146,0.17,137.07,136.97,20.0]
[1718871422340,0.34,137.07,136.97,20.0]
[1718871422522,30.0,137.05,136.97,20.0]
[1718871422946,30.0,137.05,136.96,20.0]
[1718871423120,30.0,137.05,136.97,45.0]
[1718871423320,30.0,137.05,136.98,20.17]
[1718871423626,30.0,137.05,136.98,20.0]
[1718871423818,30.0,137.05,136.96,20.0]
[1718871424935,30.0,137.05,136.97,45.0]
[1718871425136,30.0,137.05,136.98,20.0]
[1718871425336,30.0,137.05,136.99,45.0]
[1718871425831,0.17,137.04,136.95,6.2702]
[1718871426034,30.68,137.04,136.95,6.2702]
[1718871429110,30.68,137.04,136.96,45.0]
[1718871429330,30.51,137.04,136.96,45.0]
[1718871429533,30.0,137.04,136.97,20.0]
[1718871429739,30.0,137.04,136.98,45.0]
[1718871430037,0.17,137.03,136.98,45.0]
[1718871430229,30.0,137.03,136.98,45.0]
[1718871441824,30.0,137.03,136.95,6.2702]
[1718871442025,30.0,137.03,136.94,15.3582]
[1718871442026,0.51,137.02,136.94,15.3582]
[1718871442344,0.17,137.01,136.92,6.4805]
[1718871444638,30.17,137.01,136.92,6.4805]
[1718871444844,0.51,137.0,136.93,45.0]
[1718871445740,30.0,136.99,136.93,45.0]
[1718871448636,0.51,136.98,136.91,21.53]
[1718871448954,0.17,136.96,136.88,6.1669]
[1718871449140,0.51,136.96,136.88,6.1669]
[1718871449642,0.17,136.95,136.87,36.5861]
[1718871449846,30.51,136.95,136.88,20.0]
[1718871450159,0.17,136.94,136.88,20.0]
[1718871450358,0.51,136.94,136.88,20.0]
[1718871450858,30.0,136.93,136.88,20.0]
[1718871451356,30.0,136.93,136.87,36.5861]
[1718871452261,30.0,136.93,136.88,45.0]
[1718871455172,0.34,136.92,136.84,27.5451]
[1718871455346,0.34,136.92,136.85,20.0]
[1718871455854,30.34,136.92,136.85,20.0]
[1718871456254,30.34,136.92,136.86,45.0]
[1718871458166,30.0,136.92,136.86,45.0]
[1718871458543,30.0,136.92,136.85,20.0]
[1718871458544,0.51,136.91,136.85,20.0]
[1718871458744,0.51,136.91,136.84,20.0]
[1718871459767,0.51,136.91,136.85,45.0]
[1718871459972,0.17,136.93,136.85,45.0]
[1718871460269,0.17,136.92,136.85,45.0]
[1718871460968,36.3589957,136.96,136.85,45.0]
[1718871461166,36.3589957,136.96,136.86,41.53]
[1718871461467,36.3589957,136.96,136.87,45.0]
[1718871462361,0.51,136.95,136.87,45.0]
[1718871462568,0.34,136.94,136.87,45.0]
[1718871462775,0.34,136.93,136.87,45.0]
[1718871463154,0.17,136.92,136.87,45.0]
[1718871463463,0.34,136.92,136.86,21.53]